bitfinex/quotes_ETHUSD_20260228
["timestamp","ask_amount","ask_price","bid_price","bid_amount"]
[1772264881279,0.001,1879.5,1878.9,4.90237942]
[1772264881599,0.001,1879.5,1878.8,5.32240276]
[1772264881800,3.01117995,1879.5,1878.7,1.33063657]
[1772264882105,8.06514615,1879.5,1878.7,1.33063657]
[1772264882480,8.06514615,1879.5,1878.7,6.23301599]
[1772264883209,5.0539662,1879.4,1878.5,1.3307967]
[1772264883536,5.0539662,1879.4,1878.5,6.23317612]
[1772264883882,6.38424702,1879.4,1878.5,6.23317612]
[1772264884279,5.0539662,1879.3,1878.5,1.3307967]
[1772264884480,5.0539662,1879.2,1878.3,0.0011]
[1772264884707,5.0539662,1879.2,1878.3,1.33208663]
[1772264885232,5.0539662,1879.2,1878.3,0.0011]
[1772264885918,5.0539662,1878.9,1878.2,0.0011]
[1772264886084,5.16109236,1879.0,1878.2,0.0011]
[1772264886085,5.0539662,1878.7,1878.2,0.0011]
[1772264886303,5.0539662,1878.9,1878.2,0.0011]
[1772264887218,6.38436187,1879.2,1878.2,4.90347942]
[1772264887432,6.38436187,1879.2,1878.3,10.06347178]
[1772264888310,6.38436187,1879.2,1878.4,1.33091993]
[1772264888928,5.0539662,1879.1,1878.2,1.33215486]
[1772264889611,5.0539662,1879.1,1878.2,0.0011]
[1772264889919,5.0539662,1879.1,1878.2,1.33215743]
[1772264890322,1.33049494,1879.0,1878.2,0.0011]
[1772264890831,6.30350061,1879.0,1878.2,0.0011]
[1772264892022,4.97300567,1878.9,1878.2,0.0011]
[1772264892219,1.33049494,1879.0,1878.2,0.0011]
[1772264892220,6.65000567,1878.8,1878.2,0.0011]
[1772264892422,1.3307074,1878.7,1878.2,0.0011]
[1772264893814,7.98064282,1878.8,1878.2,0.0011]
[1772264894013,6.65000567,1878.8,1878.3,0.0011]
[1772264895045,7.9806617,1878.8,1878.3,0.0011]
[1772264895239,6.65000567,1878.8,1878.3,0.0011]
[1772264895621,7.98064613,1878.8,1878.3,0.0011]
[1772264896146,7.98065322,1878.8,1878.3,0.0011]
[1772264896344,4.97300567,1878.7,1878.3,0.0011]
[1772264896932,6.30375731,1878.7,1878.3,0.0011]
[1772264897532,4.97300567,1878.6,1878.2,0.0011]
[1772264899249,1.33084908,1878.5,1878.2,0.0011]
[1772264899451,1.683,1878.4,1878.2,0.0011]
[1772264901659,3.01392128,1878.4,1877.8,0.0011]
[1772264901819,4.97300567,1878.3,1877.8,0.0011]
[1772264902648,3.01392128,1878.4,1877.8,1.33242999]
[1772264903066,7.98692695,1878.4,1877.8,1.33242999]
[1772264903472,4.97300567,1878.1,1877.6,0.0011]
[1772264903788,1.687,1878.0,1877.6,0.0011]
[1772264905556,3.01824014,1878.0,1877.6,0.0011]
[1772264906167,3.01824014,1878.0,1877.9,0.0011]
[1772264906349,1.687,1878.0,1877.9,0.0011]
[1772264906551,3.0182034,1878.0,1877.9,0.0011]
[1772264906972,3.01822896,1878.0,1877.6,0.0011]
[1772264908666,3.01821184,1878.0,1877.6,0.0011]
[1772264911260,4.97300567,1877.9,1877.1,0.0011]
[1772264911662,4.97300567,1877.9,1877.1,6.24935363]
[1772264912087,4.97300567,1877.7,1877.1,0.0011]
[1772264912386,4.97300567,1877.5,1877.1,0.0011]
[1772264913795,4.97300567,1877.3,1876.5,0.0011]
[1772264913993,1.33191262,1877.0,1876.5,0.0011]
[1772264914156,1.695,1876.9,1876.5,0.0011]
[1772264914790,6.66800567,1876.9,1876.5,0.0011]
[1772264915181,6.66800567,1876.9,1876.4,0.0011]
[1772264915182,4.97300567,1876.7,1876.4,0.0011]
[1772264915488,4.97300567,1876.5,1875.7,1.3327854]
[1772264915675,4.97300567,1876.5,1875.6,1.3328569]
[1772264915859,4.97300567,1876.5,1875.6,6.24928301]
[1772264916058,6.30534419,1876.4,1875.6,4.91642611]
[1772264916286,6.67000567,1876.3,1875.5,1.33294248]
[1772264916786,1.697,1876.3,1875.6,4.91642611]
[1772264918200,1.697,1876.3,1875.5,1.33294248]
[1772264918201,6.30548621,1876.2,1875.5,1.33294248]
[1772264918604,4.97300567,1876.1,1875.1,6.24968833]
[1772264919103,6.67000567,1876.0,1875.1,6.24968833]
[1772264919400,4.97300567,1875.9,1875.1,6.24968833]
[1772264920479,6.30575228,1875.9,1875.1,6.24968833]
[1772264921004,3.02966909,1876.0,1875.2,4.45287722]
[1772264921299,7.81011266,1876.0,1875.2,4.45287722]
[1772264921475,4.78044357,1875.9,1875.1,1.33326222]
[1772264922292,1.33276468,1875.8,1875.0,4.5842722]
[1772264924203,6.11318301,1875.9,1875.1,1.33326222]
[1772264925305,6.11318301,1875.9,1875.0,5.9175696]
[1772264926398,1.33822282,1875.8,1874.9,0.0011]
[1772264926592,4.70177019,1875.7,1874.9,0.0011]
[1772264926793,6.39777019,1875.6,1874.9,0.0011]
[1772264927617,4.70177019,1875.5,1874.9,0.0011]
[1772264927820,4.70177019,1876.4,1875.3,4.5842722]
[1772264927995,4.70177019,1876.4,1875.0,9.74536456]
[1772264927996,4.70177019,1876.2,1875.0,9.74536456]
[1772264928319,4.70177019,1875.8,1875.0,5.91755929]
[1772264928653,4.70177019,1875.8,1874.9,0.0011]
[1772264928654,4.70177019,1875.6,1874.9,0.0011]
[1772264928930,4.70177019,1875.6,1874.9,5.91876901]
[1772264929226,4.70177019,1875.6,1874.9,0.0011]
[1772264930406,6.03474806,1875.5,1874.9,0.0011]
[1772264930919,3.02888117,1875.7,1875.0,0.0011]
[1772264931215,3.02888117,1875.7,1875.0,4.5853722]
[1772264931621,7.73065136,1875.7,1875.0,4.5853722]
[1772264931808,7.73065136,1875.7,1875.0,0.0011]
[1772264933249,4.70177019,1875.6,1875.0,0.0011]
[1772264933446,4.70177019,1875.6,1874.8,5.91877706]
[1772264933447,4.70177019,1875.3,1874.8,0.0011]
[1772264933624,3.7009776,1875.4,1874.8,0.0011]
[1772264933625,6.39877019,1875.2,1874.8,0.0011]
[1772264934021,6.39877019,1875.2,1874.6,0.0011]
[1772264934223,6.39877019,1875.2,1873.9,4.5842722]
[1772264934224,4.70177019,1875.0,1873.9,4.5842722]
[1772264934538,4.70177019,1875.0,1874.2,1.33383671]
[1772264935323,4.70177019,1875.0,1874.2,5.91810891]
[1772264935526,1.697,1874.9,1874.3,4.5842722]
[1772264936550,1.33347557,1874.8,1874.3,4.5842722]
[1772264937150,1.33347557,1874.8,1874.0,5.91827969]
[1772264937354,6.03524576,1874.8,1874.0,4.5842722]
[1772264937661,4.70177019,1874.7,1873.7,4.5842722]
[1772264938146,4.70177019,1875.6,1874.4,4.5842722]
[1772264938322,1.697,1875.3,1874.4,4.5842722]
[1772264938529,3.03122869,1875.2,1874.5,1.33368898]
[1772264938772,3.03122869,1875.2,1874.6,8.2852498]
[1772264938773,1.698,1875.2,1874.6,8.2852498]
[1772264939262,3.03120852,1875.2,1874.6,8.2852498]
[1772264939441,3.03120852,1875.2,1874.6,4.5842722]
[1772264939962,1.698,1875.2,1874.6,4.5842722]
[1772264940323,1.698,1875.2,1874.7,4.5842722]
[1772264940839,1.697,1875.8,1875.1,4.5842722]
[1772264941661,1.697,1875.8,1875.3,4.5842722]
[1772264942257,1.697,1875.8,1873.9,9.02391098]
[1772264942258,4.70177019,1875.6,1874.6,4.5842722]
[1772264942764,6.03474806,1875.5,1874.6,4.5842722]
[1772264942964,1.696,1875.4,1874.6,5.91788945]
[1772264943126,1.696,1875.4,1874.7,4.5842722]
[1772264943458,1.696,1875.4,1874.7,4.5853722]
[1772264944366,1.696,1875.4,1874.9,4.5842722]
[1772264944956,1.696,1875.4,1875.0,5.91760553]
[1772264945159,1.695,1875.7,1875.1,4.5842722]
[1772264945358,1.695,1875.9,1875.1,4.5842722]
[1772264946830,1.695,1875.9,1875.3,4.5842722]
[1772264947936,3.02769744,1875.9,1875.3,4.5842722]
[1772264948170,3.02776011,1875.9,1874.8,4.5842722]
[1772264948372,3.02776011,1875.9,1874.8,5.91769676]
[1772264948373,8.40274779,1875.8,1874.8,5.91769676]
[1772264948570,4.70177019,1875.5,1874.7,0.0011]
[1772264948865,3.02611975,1875.4,1874.7,0.0011]
[1772264951184,7.49880951,1875.4,1874.7,0.0011]
[1772264951371,3.02611975,1875.4,1874.7,0.0011]
[1772264951744,3.02676468,1875.8,1874.9,3.7009776]
[1772264951959,7.49945444,1875.8,1874.8,4.57552962]
[1772264952437,4.47268976,1875.7,1874.8,4.57552962]
[1772264952638,8.17366736,1875.7,1874.8,4.57552962]
[1772264953173,4.47268976,1875.5,1874.7,0.0011]
[1772264953358,1.694,1875.4,1874.7,1.33464404]
[1772264953872,1.694,1875.4,1874.7,1.33463991]
[1772264954463,1.694,1875.4,1874.7,0.0011]
[1772264954648,1.694,1875.4,1874.7,1.33464093]
[1772264955378,1.694,1875.4,1874.7,4.57662962]
[1772264955570,3.02706771,1875.4,1874.7,4.57662962]
[1772264955767,4.47268976,1875.3,1874.7,0.0011]
[1772264956779,4.47268976,1875.2,1874.7,0.0011]
[1772264957251,1.33326222,1875.1,1874.7,0.0011]
[1772264957455,1.693,1875.0,1874.7,0.0011]
[1772264958449,6.16568976,1875.0,1874.7,0.0011]
[1772264958959,1.693,1875.0,1874.7,0.0011]
[1772264959376,1.33340444,1874.9,1874.7,0.0011]
[1772264961060,3.02634488,1875.0,1874.7,0.0011]
[1772264961791,3.02634488,1875.0,1874.5,0.0011]
[1772264961994,7.49903464,1875.0,1874.5,0.0011]
[1772264964026,4.47268976,1874.9,1874.5,0.0011]
[1772264964498,5.80588088,1875.2,1874.5,0.0011]
[1772264964814,3.7009776,1874.8,1874.5,0.0011]
[1772264965114,3.7009776,1874.8,1873.8,4.57552962]
[1772264965115,6.17568976,1874.7,1873.8,4.57552962]
[1772264965320,6.17568976,1874.7,1873.8,5.90971543]
[1772264965478,4.47268976,1874.5,1873.6,4.57552962]
[1772264966628,4.47268976,1874.3,1873.3,9.9134744]
[1772264966827,9.87566736,1874.2,1873.3,4.57552962]
[1772264967025,6.17468976,1874.1,1873.3,4.57552962]
[1772264967222,6.17468976,1874.1,1873.0,5.91028669]
[1772264967223,8.17366736,1874.0,1873.0,5.91028669]
[1772264967402,5.80680577,1873.9,1873.0,4.57552962]
[1772264967607,5.80680577,1873.9,1873.0,5.91027332]
[1772264967802,4.47268976,1873.8,1873.0,4.57552962]
[1772264968008,4.47268976,1873.8,1872.9,1.48573839]
[1772264968009,4.47268976,1873.6,1872.9,1.48573839]
[1772264968209,8.17366736,1873.2,1872.2,4.57552962]
[1772264968406,1.702,1873.2,1872.6,4.57552962]
[1772264969519,4.47268976,1873.1,1871.9,4.677685]
[1772264969728,3.03662407,1873.2,1871.8,8.60992439]
[1772264969729,0.2787,1872.5,1871.8,1.33560713]
[1772264970100,1.701,1872.4,1871.4,3.7009776]
[1772264970405,1.701,1872.4,1871.3,1.33596964]
[1772264970610,0.2787,1872.5,1871.4,3.7009776]
[1772264970825,0.2787,1872.5,1871.5,1.535]
[1772264971010,0.2787,1872.5,1871.4,3.7009776]
[1772264971210,0.2787,1872.5,1871.5,1.535]
[1772264971413,1.33518478,1872.4,1871.5,2.87082687]
[1772264971729,1.33518478,1872.4,1871.5,1.33582687]
[1772264972104,1.33518478,1872.4,1871.6,4.57552962]
[1772264972501,0.2787,1872.5,1871.8,3.7009776]
[1772264972826,0.2787,1872.5,1871.9,4.57552962]
[1772264973630,1.61381984,1872.5,1871.8,1.33557647]
[1772264973931,1.61381984,1872.5,1871.7,1.33563952]
[1772264974430,1.61381984,1872.5,1871.6,5.91124074]
[1772264974741,1.61381984,1872.5,1871.6,5.91127821]
[1772264975069,6.0865096,1872.5,1871.6,4.57552962]
[1772264975333,0.2787,1872.5,1871.8,4.57552962]
[1772264975639,1.33497521,1872.7,1872.0,5.9109997]
[1772264975806,1.701,1872.8,1872.0,5.9109997]
[1772264976004,3.03590032,1872.8,1872.0,5.9109997]
[1772264976309,11.20956768,1872.8,1871.7,5.91116385]
[1772264976504,4.47268976,1872.7,1871.7,4.57552962]
[1772264976710,8.17366736,1872.3,1871.3,1.3359272]
[1772264976937,4.47268976,1872.2,1871.3,5.91145682]
[1772264977144,3.7009776,1872.1,1871.2,0.28103069]
[1772264977476,4.47268976,1872.1,1871.2,0.28103069]
[1772264977637,1.33547008,1872.0,1871.2,0.28103069]
[1772264978012,3.03345396,1872.1,1871.3,4.57552962]
[1772264978437,3.03345396,1872.1,1871.2,1.61705525]
[1772264979231,4.47268976,1872.5,1871.4,4.57552962]
[1772264979444,7.03705196,1872.7,1871.6,4.57552962]
[1772264979610,1.33508808,1872.6,1871.8,4.57552962]
[1772264980330,0.001,1872.4,1871.7,1.33568413]
[1772264980505,0.001,1872.4,1871.5,6.12501011]
[1772264980708,3.7009776,1872.3,1871.4,4.78925443]
[1772264980905,0.001,1872.4,1871.4,4.78925443]
[1772264981204,4.804186,1872.4,1871.4,6.32325443]
[1772264981409,0.001,1872.4,1871.5,4.78925443]
[1772264981605,0.001,1872.4,1871.6,6.12500993]
[1772264982010,0.001,1872.4,1871.6,6.32325443]
[1772264982220,4.5195217,1872.3,1871.4,1.33586679]
[1772264982426,8.2204993,1872.3,1871.4,1.33586679]
[1772264982652,4.5195217,1872.1,1871.3,1.33706889]
[1772264983014,4.5195217,1872.1,1871.3,0.0011]
[1772264983311,4.5195217,1872.0,1871.3,0.0011]
[1772264983622,9.55604072,1871.9,1871.3,0.0011]
[1772264984029,4.5195217,1871.8,1871.3,0.0011]
[1772264985214,1.33554142,1871.9,1871.3,0.0011]
[1772264985420,1.697,1872.2,1871.3,0.0011]
[1772264985636,1.697,1872.2,1871.4,1.33589825]
[1772264985637,1.33539875,1872.1,1871.4,1.33589825]
[1772264986831,1.697,1872.2,1871.5,4.59791486]
[1772264987031,1.33530706,1872.3,1871.5,4.59791486]
[1772264987240,5.85482876,1872.3,1871.4,7.46581311]
[1772264987424,5.85482876,1872.3,1871.4,6.13091486]
[1772264987425,3.7009776,1872.2,1871.4,6.13091486]
[1772264987738,5.85482876,1872.3,1871.4,5.93376181]
[1772264987739,1.33530706,1872.3,1871.4,5.93376181]
[1772264988249,1.33530706,1872.3,1871.4,7.46576181]
[1772264988250,5.85482876,1872.3,1871.4,7.46576181]
[1772264988736,1.33623128,1872.4,1871.5,4.59791486]
[1772264990044,0.001,1872.4,1871.5,5.9337007]
[1772264990243,0.001,1872.4,1871.5,7.4657007]
[1772264990623,0.001,1872.4,1871.5,5.9337007]
[1772264990925,0.001,1872.4,1871.3,5.3449464]
[1772264990926,3.7009776,1872.1,1871.3,0.0011]
[1772264991243,3.7009776,1871.8,1871.3,0.0011]
[1772264991548,9.9174993,1872.0,1871.3,0.0011]
[1772264991718,6.2165217,1872.0,1871.3,0.0011]
[1772264991919,1.33554142,1871.9,1871.3,0.0011]
[1772264992779,3.7009776,1871.4,1869.7,4.677685]
[1772264993043,8.2204993,1871.0,1869.7,4.59791486]
[1772264993248,4.5195217,1870.8,1869.7,4.59791486]
[1772264993956,1.33618385,1871.0,1869.9,4.59791486]
[1772264994119,1.33618385,1871.0,1870.0,1.53]
[1772264994442,1.33618385,1871.0,1870.1,4.59791486]
[1772264995140,5.85570555,1871.0,1869.9,4.59791486]
[1772264995343,5.21009913,1870.8,1869.9,4.59791486]
[1772264995643,7.55370555,1871.0,1869.9,4.59791486]
[1772264996325,7.55370555,1871.0,1870.0,1.33689839]
[1772264996514,1.33618385,1871.0,1869.9,4.59791486]
[1772264996714,11.06580468,1871.0,1869.9,4.59791486]
[1772264996916,0.2793179,1871.1,1869.9,4.59791486]
[1772264997121,1.33618437,1871.0,1869.9,4.59791486]
[1772264997339,1.30079167,1871.0,1870.1,4.59791486]
[1772264997919,1.30079167,1871.0,1870.2,1.53]
[1772264998135,0.6,1870.9,1870.2,1.53]
[1772264998333,6.54642583,1870.8,1869.9,6.12691486]
[1772264998542,6.54642583,1870.8,1869.9,4.59791486]
[1772264998927,6.54642583,1870.8,1869.9,6.12691486]
[1772264999145,1.3363267,1870.8,1869.9,6.12691486]
[1772264999848,4.5195217,1870.7,1869.5,4.66345086]
[1772265000147,4.5195217,1870.7,1869.7,4.59791486]
[1772265000348,1.3363267,1870.8,1869.8,1.33704139]
[1772265000551,0.6,1870.9,1869.9,4.59791486]
[1772265000753,1.93626303,1870.9,1870.1,4.59791486]
[1772265000924,1.93626303,1870.9,1870.2,1.529]
[1772265001249,0.6,1870.9,1870.3,4.59791486]
[1772265001648,1.33594643,1871.4,1870.3,4.59791486]
[1772265001823,1.33580715,1871.6,1870.3,4.59791486]
[1772265002224,3.03358583,1871.9,1870.9,4.59791486]
[1772265002463,3.03358583,1871.9,1871.0,7.46305319]
[1772265003157,1.698,1871.9,1871.0,2.86513833]
[1772265003327,1.3355285,1872.0,1871.1,4.59791486]
[1772265003526,1.33537931,1872.2,1871.1,4.59791486]
[1772265004865,4.5195217,1872.1,1871.2,1.33604104]
[1772265005089,1.33537931,1872.2,1871.0,4.59791486]
[1772265005090,5.21009913,1872.0,1871.0,4.59791486]
[1772265005372,9.72962083,1870.8,1869.4,4.59791486]
[1772265005565,6.2165217,1870.7,1869.5,4.59791486]
[1772265005736,5.21009913,1870.5,1869.5,4.59791486]
[1772265006065,4.5195217,1870.6,1869.5,4.59791486]
[1772265006282,4.5195217,1870.6,1869.1,4.59791486]
[1772265006425,4.5195217,1870.6,1869.2,1.304]
[1772265006629,4.5195217,1870.6,1869.3,4.59791486]
[1772265006830,5.21009913,1870.3,1869.3,4.59791486]
[1772265007030,9.72962083,1870.3,1869.2,1.528]
[1772265007328,5.21009913,1870.0,1868.9,5.93554632]
[1772265007534,6.2165217,1870.2,1868.9,5.93554632]
[1772265007535,6.2165217,1870.2,1869.0,1.528]
[1772265008196,5.21009913,1869.7,1868.7,4.20120069]
[1772265008341,4.5195217,1869.9,1868.7,5.53902086]
[1772265008534,9.72962083,1869.9,1868.7,5.53902086]
[1772265008796,0.02793179,1868.7,1868.3,4.59791486]
[1772265008998,1.33732748,1869.4,1868.4,5.9359581]
[1772265009174,1.33732748,1869.4,1868.4,4.59791486]
[1772265009489,6.54742661,1869.4,1868.3,4.59791486]
[1772265009796,1.33732748,1869.4,1868.3,4.59791486]
[1772265009954,1.33732748,1869.4,1868.4,4.59791486]
[1772265010291,1.33732748,1869.4,1868.5,1.529]
[1772265010670,4.71386681,1869.3,1868.1,0.0011]
[1772265010885,1.33747057,1869.2,1868.1,5.81416584]
[1772265011491,1.33747057,1869.2,1868.2,4.4748662]
[1772265011701,6.90709913,1869.6,1868.2,4.4748662]
[1772265011702,1.33725595,1869.5,1868.2,4.4748662]
[1772265012762,1.33725595,1869.5,1868.4,5.21009913]
[1772265012959,5.34821484,1869.8,1868.7,4.4748662]
[1772265013714,1.33702163,1869.9,1868.8,4.4748662]
[1772265014990,5.34766105,1870.0,1868.8,4.4748662]
[1772265014991,5.34721251,1870.2,1869.0,4.4748662]
[1772265015198,5.34721251,1870.2,1868.7,5.21009913]
[1772265015199,5.21009913,1869.4,1868.7,1.53]
[1772265015487,5.21009913,1869.4,1868.5,5.81283783]
[1772265015718,4.71386681,1869.7,1868.6,6.0048662]
[1772265015900,9.92396594,1870.0,1868.7,4.4748662]
[1772265016219,9.92396594,1870.0,1868.8,1.53]
[1772265016365,10.42019826,1869.6,1868.1,0.0011]
[1772265016566,4.71386681,1868.9,1867.6,9.82932017]
[1772265016770,5.21009913,1868.7,1867.6,9.82932017]
[1772265017097,6.05162365,1868.8,1867.7,4.4748662]
[1772265017304,4.71386681,1868.7,1867.7,1.529]
[1772265017469,1.33775684,1868.8,1867.7,6.0038662]
[1772265017672,1.33775684,1868.8,1867.8,4.4748662]
[1772265018002,1.33775684,1868.8,1868.7,0.0011]
[1772265018226,15.27499333,1869.0,1867.4,1.33875977]
[1772265018227,0.27963075,1869.9,1868.0,4.4748662]
[1772265018524,5.21009913,1869.5,1868.7,4.4748662]
[1772265018666,2.06140985,1869.8,1867.6,4.4748662]
[1772265018667,0.55963518,1868.6,1867.6,4.4748662]
[1772265018883,0.864,1869.3,1867.9,4.4748662]
[1772265019083,1.33747057,1869.2,1868.1,4.4748662]
[1772265019317,1.33747057,1869.2,1868.2,1.534]
[1772265019521,1.33747057,1869.2,1868.2,6.0088662]
[1772265019683,1.3371129,1869.7,1868.5,4.4748662]
[1772265020018,4.71386681,1869.4,1868.2,4.4748662]
[1772265020178,6.91509913,1869.6,1868.2,4.4748662]
[1772265020583,6.91509913,1869.6,1868.4,4.4748662]
[1772265020988,5.21009913,1869.6,1868.4,4.4748662]
[1772265021215,6.547351,1869.6,1868.6,4.4748662]
[1772265021412,5.34868094,1869.7,1868.6,4.4748662]
[1772265021413,1.33715113,1869.7,1868.6,4.4748662]
[1772265022419,5.21009913,1869.6,1868.7,1.535]
[1772265022713,1.33715113,1869.7,1868.8,4.4748662]
[1772265023214,5.34828909,1869.8,1868.8,5.81256902]
[1772265023614,5.34828909,1869.8,1868.8,5.31756902]
[1772265023793,4.71386681,1869.5,1868.4,5.81290944]
[1772265023991,5.21009913,1869.6,1868.5,4.4748662]
[1772265025219,1.33725595,1869.5,1868.5,2.87196418]
[1772265025423,1.33725595,1869.5,1868.5,1.33796418]
[1772265025729,1.33725595,1869.5,1868.6,1.534]
[1772265026095,1.33725595,1869.5,1868.6,6.0088662]
[1772265027293,5.3490238,1869.6,1868.7,1.33782843]
[1772265027498,5.21009913,1869.4,1868.3,6.0078662]
[1772265027720,1.705,1869.5,1868.4,4.4748662]
[1772265028721,1.699,1869.5,1868.4,4.4748662]
[1772265028924,1.699,1869.5,1868.4,4.45224145]
[1772265029215,1.699,1869.5,1868.5,1.533]
[1772265029414,1.33732748,1869.4,1868.5,2.87097123]
[1772265029613,1.33832748,1869.4,1868.5,2.87097123]
[1772265030041,1.33832748,1869.4,1868.5,7.34583743]
[1772265030414,1.33832748,1869.4,1868.6,1.531]
[1772265030796,0.001,1869.4,1868.6,1.531]
[1772265030999,0.001,1869.4,1868.7,4.4748662]
[1772265031701,0.001,1869.4,1868.8,1.33775684]
[1772265032411,0.001,1869.4,1869.0,4.4748662]
[1772265032629,1.33701643,1869.9,1869.0,4.4748662]
[1772265032803,1.33701643,1869.9,1869.0,4.27124345]
[1772265033205,5.34743833,1870.1,1869.0,4.27124345]
[1772265033400,5.21009913,1870.2,1869.0,4.27124345]
[1772265033614,1.3368269,1870.1,1869.1,6.0048662]
[1772265034034,1.3368269,1870.1,1869.2,1.33747057]
[1772265034241,1.3368269,1870.1,1869.3,1.53]
[1772265035341,1.3368269,1870.1,1869.2,1.33747057]
[1772265035506,1.3368269,1870.1,1869.4,1.529]
[1772265036252,1.3368269,1870.1,1869.4,2.86628065]
[1772265036559,6.05069371,1870.1,1869.1,5.8123543]
[1772265036752,4.71386681,1870.0,1869.2,1.528]
[1772265037603,4.71386681,1870.0,1869.1,5.8123543]
[1772265037827,4.71386681,1870.0,1869.2,1.528]
[1772265038419,1.33696989,1869.9,1869.3,2.86439902]
[1772265039077,1.33696989,1869.9,1868.7,5.81268959]
[1772265039078,5.21009913,1869.6,1868.7,5.81268959]
[1772265039244,9.92396594,1869.6,1868.8,1.527]
[1772265039562,9.92396594,1869.6,1868.7,5.81268292]
[1772265039711,9.92396594,1869.6,1868.4,4.4748662]
[1772265039712,4.71386681,1869.5,1868.4,4.4748662]
[1772265039908,4.71386681,1869.5,1868.5,1.527]
[1772265040437,1.33732748,1869.4,1868.6,1.527]
[1772265041826,1.33732748,1869.4,1869.1,0.0011]
[1772265042850,1.33732748,1869.4,1868.8,0.0011]
[1772265043750,5.21009913,1869.3,1868.8,0.0011]
[1772265043924,5.80113979,1869.4,1868.8,0.0011]
[1772265045247,4.46381231,1869.3,1868.8,0.0011]
[1772265046728,5.34930993,1869.5,1868.8,0.0011]
[1772265047059,9.81257918,1869.7,1868.8,0.0011]
[1772265047060,1.33702036,1869.9,1868.8,4.5591381]
[1772265048564,1.33794227,1870.0,1868.8,4.5591381]
[1772265048727,0.001,1870.0,1869.0,4.5580381]
[1772265048935,0.001,1870.0,1869.2,4.5580381]
[1772265050064,0.001,1870.0,1869.3,1.523]
[1772265050638,0.001,1870.0,1869.5,5.89529405]
[1772265051574,0.001,1870.0,1869.5,1.33725595]
[1772265051742,0.001,1870.0,1869.3,1.523]
[1772265052138,0.001,1870.0,1869.3,6.0810381]
[1772265052630,0.001,1870.0,1869.4,4.5580381]
[1772265052766,0.001,1870.0,1869.5,1.33725595]
[1772265054062,0.001,1870.0,1869.6,1.525]
[1772265054658,0.001,1870.0,1869.7,4.5580381]
[1772265054869,0.001,1870.0,1869.8,1.33704139]
[1772265055549,0.001,1870.0,1869.9,4.5580381]
[1772265056482,0.001,1870.0,1869.9,6.0870381]
[1772265056685,0.001,1870.0,1869.9,4.5580381]
[1772265056986,1.33618385,1871.0,1870.0,4.5580381]
[1772265057186,1.33616028,1871.1,1870.1,4.5580381]
[1772265057692,5.05785536,1871.1,1870.1,4.5580381]
[1772265057863,1.33616028,1871.1,1870.1,4.5580381]
[1772265058382,1.33616028,1871.1,1870.2,4.5580381]
[1772265058583,1.33616028,1871.1,1870.3,6.0890381]
[1772265059087,4.46381231,1870.9,1869.5,4.5580381]
[1772265059388,3.72169508,1870.8,1869.7,4.5580381]
[1772265059592,4.46381231,1871.1,1869.7,4.5580381]
[1772265059593,3.72169508,1871.0,1869.7,4.5580381]
[1772265059760,8.18550739,1871.0,1869.7,4.5580381]
[1772265060132,9.52154843,1871.2,1869.9,4.5580381]
[1772265060267,8.18550739,1870.8,1869.9,4.5580381]
[1772265060657,8.18550739,1870.8,1870.0,1.53]
[1772265061058,1.33639813,1870.7,1870.0,1.53]
[1772265061257,3.72169508,1870.6,1870.0,1.53]
[1772265061486,8.18550739,1870.6,1870.0,1.53]
[1772265061784,8.18550739,1870.6,1869.7,1.33708416]
[1772265061785,5.05787893,1871.0,1869.9,4.5580381]
[1772265061981,1.33618385,1871.0,1870.1,1.53]
[1772265062390,9.52169124,1871.0,1869.9,4.5580381]
[1772265062559,9.52169124,1871.0,1870.2,1.53]
[1772265062759,9.52169124,1871.0,1869.9,4.5580381]
[1772265062958,9.52169124,1871.0,1870.1,1.3368269]
[1772265063361,9.52169124,1871.0,1870.2,1.529]
[1772265063562,9.52169124,1871.0,1869.9,4.5580381]
[1772265063563,3.72169508,1870.4,1869.9,4.5580381]
[1772265063796,8.18550739,1870.4,1869.9,4.5580381]
[1772265064481,6.16381231,1870.7,1869.9,7.42399921]
[1772265064707,5.79999616,1871.0,1869.9,7.42399921]
[1772265065096,1.3363267,1870.8,1869.9,5.89499921]
[1772265065302,1.3363267,1870.8,1870.0,1.529]
[1772265065622,5.05798645,1870.9,1869.9,5.89499921]
[1772265065788,1.33629137,1870.9,1870.1,1.529]
[1772265066702,5.80003279,1871.0,1870.1,6.0870381]
[1772265066897,0.001,1870.3,1870.1,6.0870381]
[1772265067113,5.80003279,1871.0,1870.1,6.0870381]
[1772265067312,5.80003279,1871.0,1870.2,1.33675542]
[1772265067817,5.80003279,1871.0,1870.3,1.529]
[1772265068501,1.33622048,1871.0,1870.3,4.5580381]
[1772265068818,8.18550739,1870.5,1870.0,0.0011]
[1772265068983,1.33622048,1871.0,1870.1,5.894865]
[1772265069183,5.34446357,1871.1,1870.0,5.34840763]
[1772265069184,1.33654103,1870.5,1870.0,1.5301]
[1772265069618,1.33652553,1870.6,1870.0,2.86699738]
[1772265069815,1.33652553,1870.6,1870.0,1.33799738]
[1772265070126,8.18550739,1871.0,1870.0,1.33799738]
[1772265070424,1.33625527,1870.9,1870.1,4.5580381]
[1772265070714,1.33625527,1870.9,1870.2,1.529]
[1772265070884,5.34421232,1871.2,1870.2,5.82438263]
[1772265071084,5.34421232,1871.2,1870.3,4.29538263]
[1772265071286,3.72169508,1871.0,1870.3,1.529]
[1772265071517,4.67188413,1871.1,1870.3,1.529]
[1772265071952,1.701,1871.3,1870.4,4.29538263]
[1772265072130,1.33604104,1871.2,1870.4,4.29538263]
[1772265072324,3.72169508,1871.0,1870.4,4.29538263]
[1772265072525,3.72169508,1871.0,1870.3,1.528]
[1772265073056,8.39357921,1870.8,1870.0,2.86597053]
[1772265073238,1.33639813,1870.7,1870.0,2.86597053]
[1772265073419,1.33624004,1871.0,1870.1,4.29538263]
[1772265074546,1.33624004,1871.0,1870.2,4.29538263]
[1772265075326,5.34458941,1871.1,1870.4,1.33661248]
[1772265075518,5.34458941,1871.1,1870.3,7.16001376]
[1772265076526,5.34458941,1871.1,1870.4,1.528]
[1772265076926,1.701,1871.3,1870.4,5.82338263]
[1772265077124,3.03702455,1871.3,1870.5,4.29538263]
[1772265077759,4.67188413,1871.1,1870.5,1.528]
[1772265077920,3.03702455,1871.3,1870.5,1.528]
[1772265078556,3.03702455,1871.3,1870.5,1.527]
[1772265078930,7.70890868,1871.3,1870.4,4.29538263]
[1772265079141,7.70890868,1871.3,1870.5,1.527]
[1772265079345,7.70890868,1871.3,1870.6,4.29538263]
[1772265079346,3.03702455,1871.3,1870.6,4.29538263]
[1772265079854,3.03702455,1871.3,1870.6,5.63179]